[Event "17th Paracin Open 2024"]
[Site "Paracin"]
[Date "2024.07.08"]
[Round "6.1"]
[White "Mardov, Dimitar"]
[Black "Kushagra Mohan"]
[Result "1/2-1/2"]
[ECO "C55"]
[WhiteElo "2484"]
[BlackElo "2367"]
[Annotator "TA"]
[PlyCount "158"]
[EventDate "2024.07.02"]
[EventType "swiss"]
[EventCountry "SRB"]
[SourceTitle "playchess.com"]
[Source "ChessBase"]
[SourceQuality "1"]
[TimeControl "5400+30"]

{[%evp 10,158,37,27,33,26,35,29,43,38,70,72,86,72,78,94,97,0,0,0,95,21,84,86,173,150,158,161,187,152,254,255,261,252,251,258,251,-37,-33,-77,-85,-70,-100,-95,-43,-43,-35,-48,-17,-31,-31,-158,-150,-152,-156,-157,-161,-172,-167,-146,-80,-73,-78,-73,-71,-73,-73,-83,-19,-19,-20,-20,-19,-19,-20,-115,-115,-115,-115,-115,-115,-115,-185,-185,-174,-156,0,0,0,-115,-115,-574,-697,-912,-791,-599,-592,-165,-591,-576,0,-1379,-1368,-1318,-1303,-1564,0,0,0,-150,-164,-1154,-595,-1541,-1516,-1270,0,-171,0,0,0,0,0,0,0,0,0,0,0,0,0,0,0,0,0,0,0,0,0,-29986,0,0,0,-29986,0,0,0,0,0,0,0]} 1. e4 {[%emt 0:00:03]} e5 {[%emt 0:00:03]} 2. Nf3 {[%emt 0:00:05]} Nc6 {[%emt 0:00:03]} 3. Bc4 {[%emt 0:00:20]} Nf6 {[%emt 0:00:05]} 4. d3 {[%emt 0:00:08]} h6 {[%emt 0:00:02]} 5. O-O {[%emt 0:01:29]} d6 {[%emt 0:00:03]} 6. c3 {[%emt 0:00:20]} g5 {[%emt 0:00:04]} 7. a4 {[%emt 0:01:14]} Bg7 {[%emt 0:00:16]} 8. Re1 {[%emt 0:01:11]} O-O {[%emt 0:01:01] White has an edge.} 9. h3 {[%emt 0:03:34]} g4 {[%emt 0:06:24]} 10. hxg4 {[%emt 0:02:14]} Nxg4 {[%emt 0:01:52]} 11. Nbd2 {[%emt 0:11:56] White is more active.} Kh8 {[%emt 0:01:37]} 12. g3 {[%emt 0:14:18]} Ne7 {[%emt 0:09:51]} 13. d4 {[%emt 0:07:51]} (13. Nh4 $16) 13... Ng6 $11 {[%emt 0:04:54]} 14. dxe5 {[%emt 0:05:05]} dxe5 {[%emt 0:00:18]} (14... f5 $1 $11) 15. b3 {[%emt 0:04:55]} (15. Qe2 $16) 15... c5 {[%emt 0:01:18]} (15... Qf6 $11) 16. Qe2 $16 {[%emt 0:05:53]} Be6 {[%emt 0:09:57]} (16... b6 $16 {keeps fighting.}) 17. Bxe6 {[%emt 0:07:00]} fxe6 {[%emt 0:00:18]} 18. Nf1 {[%emt 0:04:28]} Qf6 {[%emt 0:12:42]} 19. N1h2 {[%emt 0:01:48]} Rad8 {[%emt 0:07:01]} (19... Qf7 $16 {was called for.} 20. Nxg4 Qxf3 21. Nxh6 (21. Bxh6 Bxh6 22. Qxf3 Rxf3 $16) 21... c4) 20. Kg2 $18 {[%emt 0:03:57]} Nxh2 {[%emt 0:07:01]} 21. Nxh2 {[%emt 0:00:09] Strongly threatening Ng4.} Nf4+ {[%emt 0:00:18]} 22. gxf4 {[%emt 0:02:16]} exf4 {[%emt 0:00:02]} 23. Bb2 $2 {[%emt 0:08:39] [#]} (23. Rb1 $18) 23... f3+ $1 $15 {[%emt 0:04:46]} 24. Qxf3 {[%emt 0:05:22]} (24. Nxf3 Qf4) 24... Qg5+ {[%emt 0:01:24]} 25. Qg4 {[%emt 0:03:27]} Rd2 $1 {[%emt 0:00:27][%csl LRb2,LRf2]} 26. Rf1 {[%emt 0:01:34]} (26. Qxg5 $2 Rfxf2+ 27. Kg3 Rg2+ 28. Kf3 Rdf2+ (28... hxg5 $2 29. Ng4 $19) 29. Ke3 hxg5 $19) 26... Rxb2 {[%emt 0:01:38]} (26... Qe3 $1 $17 {[%cal Rf8f2]} 27. Nf3 (27. Kh1 $2 Rfxf2 28. Rxf2 Qxf2 $19) 27... Rxb2) 27. Qxg5 {[%emt 0:00:05]} hxg5 {[%emt 0:00:04]} 28. Nf3 {[%emt 0:00:33]} Rf4 {[%emt 0:07:06]} (28... Rxb3 29. Nxg5 Bxc3 30. Rad1 $11) 29. Rad1 {[%emt 0:01:03]} Bxc3 {[%emt 0:04:41]} 30. Rh1+ {[%emt 0:02:49]} (30. Rd3 $1 $15 Bd4 (30... Rxb3 31. Rc1 $16) 31. Nxd4 cxd4 32. Rxd4) 30... Kg7 $17 {[%emt 0:01:50]} 31. Rd7+ {[%emt 0:01:34]} Kg6 {[%emt 0:00:24] White must now prevent ...g4.} 32. Rdh7 {[%emt 0:00:37][%csl Gh7][%cal Rh1h6]} Rg4+ {[%emt 0:00:34]} (32... Rxe4 33. R1h6+ (33. Rxb7 $2 g4 $19) 33... Kf5 34. Rf7+ (34. Rxb7 Be5 $14) (34. Rxb7 Be5 $16)) 33. Kf1 {[%emt 0:00:19][%csl Gh7][%cal Rh1h6]} Rb1+ {[%emt 0:00:29]} (33... Rxe4 34. R1h6+ (34. Rxb7 $2 Ree2 $19) 34... Kf5 35. Rf7+ (35. Rxb7 Rb1+ 36. Kg2 Rg4+ 37. Kh2 Be5+ 38. Nxe5 Kxe5 $17) (35. Rxb7 Rb1+ 36. Kg2 Rg4+ 37. Kh2 Ke4 $17)) 34. Ke2 {[%emt 0:00:03][%csl Gh7][%cal Rh1h6]} Rxe4+ {[%emt 0:00:09]} ({Black should play} 34... Rxh1 $1 35. Rxh1 Rxe4+ 36. Kd3 Rf4 37. Nxg5 Kxg5 38. Kxc3 a6 (38... Rxf2 39. Rh7 $11)) 35. Kd3 {[%emt 0:00:05]} Rxh1 {[%emt 0:00:03]} (35... Rxb3 $2 36. Kxe4 Rb4+ 37. Kd3 $18) 36. Rxh1 {[%emt 0:00:06]} Rf4 {[%emt 0:00:03]} 37. Nxg5 {[%emt 0:00:37]} Kxg5 {[%emt 0:07:22]} 38. Kxc3 {[%emt 0:00:02][%mdl 4096] Endgame. KR-KR} a6 {[%emt 0:00:08]} ({Don't play} 38... Rxf2 $6 39. Rh7 $11) (38... b6 $17 {Hoping for ...Rf3+.} 39. Rh7 a5 (39... Rxf2 40. Rxa7 Rf3+ 41. Kc4 $11)) 39. Rh7 $11 {[%emt 0:01:31]} b5 {[%emt 0:00:12]} 40. Rc7 $1 {[%emt 0:01:04]} Rf3+ {[%emt 0:01:06]} (40... Rxf2 41. Rxc5+ Rf5 42. Rc6) 41. Kd2 {[%emt 0:00:04]} Rxf2+ {[%emt 0:00:15]} 42. Ke3 {[%emt 0:00:04]} (42. Kd3 $11) 42... Rb2 $1 $17 {[%emt 0:02:04]} 43. Rxc5+ {[%emt 0:00:04]} Kf6 {[%emt 0:00:03]} 44. Rc3 {[%emt 0:00:51]} bxa4 $1 {[%emt 0:00:55]} 45. bxa4 {[%emt 0:00:01]} Rb4 {[%emt 0:00:14]} 46. a5 {[%emt 0:00:06]} Rb5 {[%emt 0:00:04]} 47. Ra3 {[%emt 0:00:04]} e5 $2 {[%emt 0:00:14]} (47... Ke5 $17 {...Rc5 would now be deadly.} 48. Kd3 Kd5) 48. Ke4 $11 {[%emt 0:01:21]} Ke6 {[%emt 0:00:57]} 49. Ra4 {[%emt 0:00:24] Repels Rb4+} (49. Rh3 $11) 49... Kd6 $17 {[%emt 0:00:33]} 50. Kf5 $2 {[%emt 0:01:21][%mdl 8192]} (50. Ra2 $17) 50... Rc5 $1 $19 {[%emt 0:01:22]} 51. Ke4 {[%emt 0:00:52]} Kc6 $1 {[%emt 0:00:12]} 52. Ra2 {[%emt 0:00:40]} Kb5 {[%emt 0:00:11]} 53. Ra3 {[%emt 0:00:50]} Kb4 {[%emt 0:00:05][%csl LRa3,LRa5]} 54. Ra1 {[%emt 0:00:04]} Kb3 $2 {[%emt 0:01:33]} (54... Rxa5 $19 55. Rb1+ Kc3 56. Rc1+ Kb2) 55. Rb1+ {[%emt 0:00:19][%mdl 8192] [#]} (55. Kf5 $11) 55... Ka4 $1 {[%emt 0:00:06]} 56. Ra1+ {[%emt 0:00:16]} Kb4 {[%emt 0:00:00]} 57. Ra2 {[%emt 0:00:27]} Kb3 $2 {[%emt 0:07:06]} (57... Rxa5 $19 58. Rb2+ Kc3) 58. Ra1 $11 {[%emt 0:00:03]} Kb2 {[%emt 0:00:03]} 59. Ra4 {[%emt 0:00:04] [#]} ({White should try} 59. Rh1 $11) 59... Rb5 $1 $17 {[%emt 0:00:02] ...Kb3 is the strong threat.} 60. Rc4 $2 {[%emt 0:00:54]} (60. Kf5) 60... Rxa5 $19 {[%emt 0:00:15]} 61. Rb4+ {[%emt 0:00:35]} Kc3 {[%emt 0:00:42]} 62. Rb6 {[%emt 0:00:05]} Kc4 $2 {[%emt 0:03:33]} (62... Ra4+ $19 63. Kxe5 a5) 63. Rh6 $2 {[%emt 0:00:09]} (63. Rc6+ $1 $11 Kb5 64. Re6) 63... Ra4 $2 {[%emt 0:01:57]} (63... Ra1 $19 64. Kxe5 a5 65. Rc6+ Kb5) 64. Kxe5 $11 {[%emt 0:00:28]} Kb5 {[%emt 0:00:25]} 65. Kd5 {[%emt 0:00:39]} a5 {[%emt 0:00:24]} 66. Rh8 {[%emt 0:00:40]} Rg4 {[%emt 0:00:42]} 67. Rb8+ {[%emt 0:01:09]} Ka4 {[%emt 0:00:01]} 68. Rb1 {[%emt 0:00:36]} Rb4 {[%emt 0:00:27]} 69. Ra1+ {[%emt 0:00:20]} Kb5 {[%emt 0:00:00] And now ...a4 would win.} 70. Rc1 {[%emt 0:00:48]} Rh4 {[%emt 0:02:23]} 71. Rb1+ $1 {[%emt 0:00:11]} Ka4 {[%emt 0:00:23]} 72. Kc5 {[%emt 0:00:08]} Rh3 {[%emt 0:01:10]} 73. Ra1+ {[%emt 0:00:23]} Ra3 {[%emt 0:00:05]} 74. Rxa3+ {[%emt 0:00:15]} Kxa3 {[%emt 0:00:03] KP-K} 75. Kc4 {[%emt 0:00:05]} a4 {[%emt 0:00:08][%cal Ba5a4,Ba4a3,Ba3a2][%mdl 32] ( -> ...Kb2)} (75... Ka4 $5) 76. Kc3 {[%emt 0:00:03]} Ka2 {[%emt 0:00:03]} 77. Kc2 {[%emt 0:00:03] The position is equal.} a3 {[%emt 0:00:02]} 78. Kc1 {[%emt 0:00:04]} Ka1 {[%emt 0:00:02]} (78... Kb3 $5 79. Kb1 $8 Kc3 $11) 79. Kc2 {[%emt 0:00:06]} a2 {[%emt 0:00:01] A wild game.   Weighted Error Value: White=0.74/Black=0.30.  Loses game:     	White=2     	---        Missed win:     	White=1     	Black=3      Mistake:       	White=7     	Black=8      Inaccurate:     	White=3     	Black=2      OK:         	White=23    	Black=19     Best:        	White=19    	Black=7      Strong:       	White=2     	Black=6      Brilliant:      	---       	Black=1} (79... Ka2 $5) 1/2-1/2

[Event "17th Paracin Open 2024"]
[Site "Paracin"]
[Date "2024.07.08"]
[Round "6.2"]
[White "Fier, Alexandr"]
[Black "Xu, Junwei"]
[Result "1-0"]
[ECO "B30"]
[WhiteElo "2602"]
[BlackElo "2138"]
[Annotator "TA"]
[PlyCount "113"]
[EventDate "2024.07.02"]
[EventType "swiss"]
[EventCountry "SRB"]
[SourceTitle "playchess.com"]
[Source "ChessBase"]
[SourceQuality "1"]
[TimeControl "5400+30"]

{[%evp 20,113,35,28,42,12,14,11,16,6,3,0,22,20,20,16,22,20,29,0,0,-10,0,-29,-11,-64,-58,-70,-48,-71,-45,-46,-28,-31,-22,-185,0,-26,0,0,0,0,0,0,0,-11,-15,-12,0,0,0,0,0,0,0,0,0,0,8,8,8,8,8,8,22,0,0,0,8,8,8,8,8,8,8,8,8,8,1127,1121,5057,3824,29963,29961,29960,29962,29964,29964,29961,606,29982,29983,29983,29983,29988,29989]} 1. e4 {[%emt 0:00:02]} c5 {[%emt 0:00:24]} 2. Nf3 {[%emt 0:00:05]} Nc6 {[%emt 0:00:02]} 3. Bb5 {[%emt 0:00:05]} e5 {[%emt 0:00:10]} 4. O-O {[%emt 0:00:05]} Bd6 {[%emt 0:00:03]} 5. d3 {[%emt 0:00:11]} Nge7 {[%emt 0:00:30]} 6. Bc4 {[%emt 0:02:31] B30: Sicilian: 2...Nc6 3 Bb5, lines without ...g6.} h6 {[%emt 0:03:12]} 7. Nc3 {[%emt 0:02:03]} Ng6 {[%emt 0:03:35]} 8. a4 {[%emt 0:01:17]} Be7 $146 {[%emt 0:00:16]} ({Predecessor:} 8... O-O 9. Nd5 Nce7 10. c3 Nxd5 11. Bxd5 Bc7 12. d4 cxd4 13. cxd4 d6 14. dxe5 dxe5 {1-0 Draskovic,L (2476)-Skoberne,J (2538) EU-chT 24th Budva 2023 (9.2)}) 9. Nd5 {[%emt 0:01:19]} d6 {[%emt 0:00:19]} 10. c3 {[%emt 0:00:03]} Bg5 {[%emt 0:07:55]} 11. Be3 {[%emt 0:02:14]} Be6 {[%emt 0:11:41]} 12. Qd2 {[%emt 0:01:41]} Bxe3 {[%emt 0:00:49]} 13. fxe3 {[%emt 0:01:25]} O-O {[%emt 0:01:06]} 14. Qf2 {[%emt 0:00:13]} Nce7 {[%emt 0:02:46]} 15. Qg3 {[%emt 0:09:14]} Bxd5 {[%emt 0:01:37]} 16. exd5 {[%emt 0:00:57]} f5 {[%emt 0:02:06]} 17. Qh3 {[%emt 0:00:06]} Qc8 {[%emt 0:02:22]} 18. Nd2 {[%emt 0:02:59]} Kh7 {[%emt 0:04:08]} 19. a5 {[%emt 0:00:34]} b6 {[%emt 0:08:53]} 20. d4 {[%emt 0:09:33]} e4 {[%emt 0:11:02]} 21. Qg3 {[%emt 0:04:24]} Qd7 {[%emt 0:03:51]} 22. Ba2 {[%emt 0:02:53]} (22. Qh3 $11) 22... cxd4 $15 {[%emt 0:00:43]} (22... bxa5 $6 23. dxc5 dxc5 24. d6 $11) 23. cxd4 {[%emt 0:00:04]} bxa5 {[%emt 0:06:17]} 24. h4 {[%emt 0:00:29]} Ng8 {[%emt 0:05:15]} 25. Nc4 {[%emt 0:01:11]} Rad8 {[%emt 0:00:36]} 26. Nxa5 {[%emt 0:00:30]} Nf6 {[%emt 0:00:43]} 27. Nc6 $2 {[%emt 0:00:09]} (27. Qh3 $11 {and White stays safe.}) 27... Rc8 $2 {[%emt 0:01:52]} (27... f4 $1 $19 {[%cal Rf4g3]} 28. exf4 Nh5) 28. h5 {[%emt 0:02:11]} Ne7 {[%emt 0:01:34]} 29. Nxe7 {[%emt 0:00:54]} Qxe7 {[%emt 0:00:03]} 30. Rxf5 {[%emt 0:00:09]} Rc2 {[%emt 0:01:59]} 31. Qg6+ {[%emt 0:02:00]} Kh8 {[%emt 0:00:11]} 32. Raf1 {[%emt 0:00:03]} Rxb2 {[%emt 0:00:36]} 33. Bb1 $1 {[%emt 0:03:19]} Re2 {[%emt 0:02:33]} 34. Rxf6 {[%emt 0:06:17]} gxf6 {[%emt 0:05:54]} 35. Qxh6+ {[%emt 0:00:16]} Kg8 {[%emt 0:00:01]} 36. Qg6+ {[%emt 0:00:38]} Qg7 {[%emt 0:01:01]} 37. Qxe4 {[%emt 0:00:05]} f5 {[%emt 0:00:36]} 38. Qf3 {[%emt 0:00:04]} (38. Rxf5 Rxf5 39. g4 Rf7 (39... Rxh5 40. Qe8+ Qf8 41. Qg6+ Qg7 42. Qe8+ Qf8 43. Qg6+ Qg7 44. Qe8+ $11) 40. Qe8+ Qf8 41. Qxf8+ Kxf8 $19 (41... Rxf8 $2 42. Bd3 $19)) 38... Qg4 {[%emt 0:01:27]} 39. Bxf5 {[%emt 0:03:39]} Qxf3 {[%emt 0:00:04]} 40. Rxf3 {[%emt 0:00:03]} Kg7 {[%emt 0:00:14]} 41. e4 {[%emt 0:00:03]} Kh6 {[%emt 0:00:33]} 42. Rg3 {[%emt 0:01:13]} (42. e5 {is interesting.} Rg8 43. g4 dxe5 44. d6) 42... Kxh5 {[%emt 0:00:57]} 43. Kh2 {[%emt 0:03:11]} Rf2 {[%emt 0:02:39]} 44. Rg6 {[%emt 0:00:04]} R8xf5 {[%emt 0:00:35]} 45. exf5 {[%emt 0:00:05]} Rxf5 {[%emt 0:00:03]} 46. Rxd6 {[%emt 0:00:04]} Rf4 {[%emt 0:00:10]} 47. Kg3 {[%emt 0:02:13]} Rxd4 {[%emt 0:00:14]} 48. Kf3 {[%emt 0:00:01]} Kg5 $2 {[%emt 0:01:26][%mdl 8192]} (48... a5 $11) 49. Ke3 $18 {[%emt 0:00:06]} Rg4 {[%emt 0:00:31] [#]} 50. Re6 $1 {[%emt 0:00:45]} Rxg2 {[%emt 0:05:05]} 51. d6 {[%emt 0:00:58]} Rg1 {[%emt 0:00:12]} 52. Kd4 {[%emt 0:00:24]} a5 {[%emt 0:02:15]} 53. Kc5 {[%emt 0:00:42]} Kf5 {[%emt 0:02:27]} 54. d7 {[%emt 0:02:54]} (54. Re2 $142 Rd1 55. Kc6 Kf6 56. d7 Rc1+ 57. Kb6 Rd1 58. Kc7 (58. Kxa5 Rxd7 59. Kb4 Rd3 $11) 58... Rc1+ 59. Kd8) 54... Rc1+ {[%emt 0:01:25] [#]} 55. Kd6 $1 {[%emt 0:00:04]} Rd1+ {[%emt 0:00:13]} 56. Ke7 {[%emt 0:00:04]} a4 {[%emt 0:00:05]} 57. Rd6 {[%emt 0:00:09]} ({And not} 57. d8=B Rxd8 58. Rf6+ Ke5 59. Re6+ (59. Ra6 Rd4 $19) 59... Kd5 $11) 1-0

[Event "17th Paracin Open 2024"]
[Site "Paracin"]
[Date "2024.07.08"]
[Round "6.3"]
[White "Radovanovic, Nikola"]
[Black "Antal, Gergely"]
[Result "1/2-1/2"]
[ECO "B12"]
[WhiteElo "2441"]
[BlackElo "2580"]
[Annotator "TA"]
[PlyCount "35"]
[EventDate "2024.07.02"]
[EventType "swiss"]
[EventCountry "SRB"]
[SourceTitle "playchess.com"]
[Source "ChessBase"]
[SourceQuality "1"]
[TimeControl "5400+30"]

{[%evp 9,35,22,24,17,29,0,10,-8,-10,-43,-24,-29,-34,-47,-39,-42,-32,-14,-31,-43,-2,0,0,-22,15,17,32,0]} 1. e4 {[%emt 0:03:07]} c6 {[%emt 0:00:07]} 2. d4 {[%emt 0:00:17]} d5 {[%emt 0:00:05]} 3. e5 {[%emt 0:00:12]} Bf5 {[%emt 0:00:13]} 4. Nf3 {[%emt 0:00:15]} e6 {[%emt 0:00:15]} 5. Be2 {[%emt 0:00:30]} a6 {[%emt 0:00:32]} 6. O-O {[%emt 0:00:50]} Bg6 {[%emt 0:00:18]} 7. a4 {[%emt 0:14:27]} c5 {[%emt 0:02:04]} 8. c3 {[%emt 0:04:59] The position is equal.} Nc6 {[%emt 0:09:33]} 9. dxc5 {[%emt 0:03:42]} Bxc5 {[%emt 0:00:31]} 10. b4 {[%emt 0:04:04]} Bb6 {[%emt 0:00:18]} 11. b5 {[%emt 0:12:47]} axb5 {[%emt 0:00:30]} 12. Bxb5 {[%emt 0:00:08]} Nge7 {[%emt 0:00:25]} 13. Ba3 {[%emt 0:01:21]} O-O {[%emt 0:00:45]} 14. Nbd2 {[%emt 0:00:16]} Rc8 {[%emt 0:21:54]} 15. c4 {[%emt 0:13:19]} Nd4 {[%emt 0:16:45]} 16. Rc1 {[%emt 0:06:01] Nxd4 would now be deadly.} Nxf3+ {[%emt 0:18:53]} 17. Qxf3 {[%emt 0:02:50] Threatens to win with cxd5.} Bc5 {[%emt 0:00:15]} 18. Bxc5 {[%emt 0:10:14] Weighted Error Value: White=0.13 (very precise) /Black=0.11 (very precise) .  Inaccurate:     	White=2     	Black=2      OK:         	White=2     	Black=7} 1/2-1/2

[Event "17th Paracin Open 2024"]
[Site "Paracin"]
[Date "2024.07.08"]
[Round "6.4"]
[White "Wang, Yanbin"]
[Black "Fernandez, Daniel Howard"]
[Result "0-1"]
[ECO "D07"]
[WhiteElo "2423"]
[BlackElo "2526"]
[Annotator "TA"]
[PlyCount "134"]
[EventDate "2024.07.02"]
[EventType "swiss"]
[EventCountry "SRB"]
[SourceTitle "playchess.com"]
[Source "ChessBase"]
[SourceQuality "1"]
[TimeControl "5400+30"]

{[%evp 37,134,-130,-135,-134,-140,-132,-145,-154,-132,-124,-131,-124,-129,-138,-147,-158,-152,-156,-164,-147,-155,-161,-68,-70,-42,-85,-93,-122,-126,-124,-74,-58,-78,-65,-55,-67,-57,-60,-54,-48,-48,-48,-48,-52,-58,-55,-66,-67,-30,-83,-74,-965,-960,-1003,-923,-1416,-1364,-1679,-2246,-1712,-2036,-5197,-5313,-5145,-3281,-2520,-1178,-9427,-9208,-8898,-8861,-7108,-6838,-6098,-929,-4129,-4554,-4294,-3627,-2750,-1729,-29967,-29970,-29970,-29972,-29971,-29966,-12270,-5138,-4983,-4602,-5591,-3416,-1441,-1306,-29974,-29974,-29973,-29974]} 1. d4 {[%emt 0:00:07]} d5 {[%emt 0:00:01]} 2. c4 {[%emt 0:00:07]} Nc6 {[%emt 0:00:04]} 3. Nf3 {[%emt 0:00:58]} Bg4 {[%emt 0:00:03]} 4. cxd5 {[%emt 0:02:47]} Bxf3 {[%emt 0:00:45]} 5. gxf3 {[%emt 0:01:00]} Qxd5 {[%emt 0:00:02]} 6. e3 {[%emt 0:00:11]} e5 {[%emt 0:00:18]} 7. Nc3 {[%emt 0:00:50]} Bb4 {[%emt 0:00:03]} 8. Bd2 {[%emt 0:00:11]} Bxc3 {[%emt 0:00:39]} 9. bxc3 {[%emt 0:00:04]} Qd6 {[%emt 0:00:38]} 10. Rb1 {[%emt 0:06:18]} b6 {[%emt 0:02:13] 10...0-0-0 gains popularity.} 11. Bb5 {[%emt 0:05:18] D07: Queen's Gambit: Chigorin Defence.} Nge7 {[%emt 0:02:20]} 12. O-O {[%emt 0:00:10]} O-O $5 $146 {[%emt 0:00:44][%mdl 8] New and interesting.} ({Predecessor:} 12... O-O-O 13. Qa4 h5 14. Rfc1 Rh6 15. Kh1 Qf6 16. Be2 Qh4 17. e4 Rg6 18. Be3 f5 {1-0 Byrn,C (2171)-Sommerhalder,E (1899) Gibraltar Masters 8th 2010 (2)}) 13. Kh1 {[%emt 0:01:15]} Ng6 {[%emt 0:04:56]} 14. Qa4 {[%emt 0:04:17]} Na5 {[%emt 0:10:42]} 15. Be2 {[%emt 0:01:18]} Rfe8 {[%emt 0:03:27]} 16. Bc1 {[%emt 0:04:08]} Qf6 {[%emt 0:11:11]} 17. Bb2 {[%emt 0:03:46]} Qh4 {[%emt 0:09:18]} 18. Qd7 {[%emt 0:01:48]} Re6 {[%emt 0:00:45]} 19. d5 {[%emt 0:16:16]} (19. Qxc7 $2 Nf4 $19) 19... Rd6 {[%emt 0:00:57]} 20. Qg4 {[%emt 0:17:53]} Rxd5 {[%emt 0:01:16]} 21. Qxh4 {[%emt 0:00:14]} Nxh4 {[%emt 0:00:03]} 22. Bc1 {[%emt 0:00:22]} Rc5 {[%emt 0:05:36]} 23. Rb4 {[%emt 0:01:05]} Ng6 {[%emt 0:00:14]} 24. c4 {[%emt 0:00:37]} Rd8 {[%emt 0:00:46]} 25. Rb5 {[%emt 0:00:28]} Rc6 {[%emt 0:09:42]} (25... Nxc4 $2 26. Rxc5 bxc5 27. Bxc4 $18) 26. c5 {[%emt 0:00:40]} a6 {[%emt 0:01:43]} 27. Rb2 {[%emt 0:00:08]} Rxc5 {[%emt 0:03:39]} 28. Bxa6 {[%emt 0:00:08]} Rd6 {[%emt 0:03:18]} 29. a4 {[%emt 0:02:52]} Rf6 {[%emt 0:04:41]} (29... Nh4 $19 30. Be2 f6) 30. Rd2 $15 {[%emt 0:01:26]} h6 {[%emt 0:02:08]} (30... Rxf3 $2 {loses.} 31. Ba3 $18) 31. Be2 {[%emt 0:05:07]} Nc4 {[%emt 0:00:43]} 32. Rc2 {[%emt 0:06:08]} Rfc6 {[%emt 0:00:09]} 33. Rd1 {[%emt 0:01:01]} Nd6 {[%emt 0:05:19]} (33... Kf8 $142 34. f4 exf4 35. exf4 (35. Rxc4 $2 Rxc4 36. Bxc4 Rxc4 $19) 35... Nh4) 34. Rxc5 $17 {[%emt 0:00:07]} Rxc5 {[%emt 0:00:03]} 35. Ba3 {[%emt 0:01:55]} Rc2 {[%emt 0:00:04]} 36. Bd3 {[%emt 0:00:27]} Rxf2 {[%emt 0:00:04]} 37. Bxg6 {[%emt 0:01:10]} fxg6 {[%emt 0:00:08]} 38. Bxd6 {[%emt 0:00:03]} cxd6 {[%emt 0:00:08]} 39. Rxd6 {[%emt 0:00:03]} Rxf3 {[%emt 0:00:38]} 40. Rxb6 {[%emt 0:01:15]} Rxe3 {[%emt 0:00:05]} 41. Rxg6 {[%emt 0:00:10]} Kf7 {[%emt 0:00:08]} 42. Ra6 $1 {[%emt 0:00:48]} Re2 {[%emt 0:01:20]} 43. Kg1 {[%emt 0:05:49]} (43. Ra7+ $11 Kf6 44. Kg1) 43... h5 {[%emt 0:00:44]} 44. h3 $2 {[%emt 0:01:54][%mdl 8192]} (44. Ra7+ $17 Kf6 45. a5) 44... g6 $19 {[%emt 0:00:38]} 45. a5 {[%emt 0:03:42]} Ra2 {[%emt 0:00:22]} 46. Ra7+ {[%emt 0:01:19]} Kf6 {[%emt 0:00:23]} 47. a6 {[%emt 0:01:24]} Kg5 {[%emt 0:01:57]} 48. Re7 {[%emt 0:04:37]} Kf4 {[%emt 0:02:15]} ({Inferior is} 48... Rxa6 49. Rxe5+ Kf4 50. Re2 $11) 49. a7 {[%emt 0:00:05]} Kg3 {[%emt 0:01:44]} 50. Kf1 {[%emt 0:00:03]} Kxh3 {[%emt 0:00:12]} 51. Rg7 {[%emt 0:00:04]} Kh4 {[%emt 0:16:44]} 52. Rxg6 {[%emt 0:00:08]} Rxa7 {[%emt 0:00:00]} 53. Kf2 {[%emt 0:00:13]} Rf7+ {[%emt 0:00:00]} 54. Ke3 {[%emt 0:00:13]} Rf5 {[%emt 0:00:00]} 55. Rg1 {[%emt 0:00:04]} Rg5 {[%emt 0:00:00]} 56. Rh1+ {[%emt 0:00:05]} Kg4 {[%emt 0:00:00]} 57. Rg1+ {[%emt 0:00:43]} Kf5 {[%emt 0:00:00]} 58. Rf1+ {[%emt 0:00:04]} Kg6 {[%emt 0:00:00]} 59. Ke4 {[%emt 0:02:20]} h4 {[%emt 0:00:00]} 60. Rh1 {[%emt 0:00:39]} Rh5 {[%emt 0:00:00]} 61. Rg1+ {[%emt 0:00:49]} Kf6 {[%emt 0:00:00]} 62. Rf1+ {[%emt 0:00:06]} Ke6 {[%emt 0:00:00]} (62... Ke7 $142 63. Rf2 h3) 63. Rh1 $19 {[%emt 0:00:12]} Rh8 {[%emt 0:00:00]} 64. Kf3 {[%emt 0:00:36]} Rf8+ {[%emt 0:00:00]} 65. Kg4 {[%emt 0:00:42]} Rg8+ {[%emt 0:00:00]} 66. Kh3 {[%emt 0:00:10]} e4 {[%emt 0:00:00]} 67. Re1 {[%emt 0:02:24]} Ke5 {[%emt 0:00:00]} 0-1